[Event "21st Open Gran Hotel Bali-A 2024"]
[Site "Benidorm"]
[Date "2024.11.30"]
[Round "2.1"]
[White "Albornoz Cabrera, Carlos Daniel"]
[Black "Rog, Bartlomiej"]
[Result "1-0"]
[ECO "C60"]
[WhiteElo "2572"]
[BlackElo "2244"]
[Annotator "TA"]
[PlyCount "53"]
[EventDate "2024.11.26"]
[EventType "swiss"]
[EventCountry "ESP"]
[SourceTitle "playchess.com"]
[Source "ChessBase"]
[SourceQuality "1"]
[TimeControl "5400+30"]

{[%evp 14,52,45,27,28,32,38,10,14,23,31,21,57,25,52,51,116,106,141,125,167,145,179,165,185,174,182,175,180,187,256,260,257,247,460,456,933,924,29998,29999,29999]} 1. e4 {[%emt 0:00:02]} e5 {[%emt 0:03:00]} 2. Nf3 {[%emt 0:00:04]} Nc6 {[%emt 0:00:10]} 3. Bb5 {[%emt 0:00:02]} Nge7 {[%emt 0:00:12]} 4. O-O {[%emt 0:00:05]} g6 {[%emt 0:00:10]} 5. c3 {[%emt 0:00:11]} a6 {[%emt 0:00:14]} 6. Ba4 {[%emt 0:00:28][%cal Bb5a4,Ba4c2,Bc2b3][%mdl 32]} Bg7 {[%emt 0:00:12]} 7. d4 {[%emt 0:00:20]} exd4 {[%emt 0:00:09]} 8. cxd4 {[%emt 0:00:02]} b5 {[%emt 0:00:11]} 9. Bc2 {[%emt 0:02:05]} O-O {[%emt 0:00:17]} 10. h3 {[%emt 0:01:28]} d5 {[%emt 0:02:05] The position is equal.} 11. e5 {[%emt 0:00:25]} (11. Bg5 {is interesting.} dxe4 12. Bxe4 f6 13. Bf4) 11... f6 {[%emt 0:08:32]} 12. exf6 {[%emt 0:01:24]} Bxf6 {[%emt 0:00:50]} 13. Nc3 {[%emt 0:10:07][%cal Bb1c3,Bc3d5,Bd5e3][%mdl 32]} Bf5 {[%emt 0:06:32]} 14. Bb3 {[%emt 0:03:59]} Qd7 {[%emt 0:02:57] [#]} ({Black should play} 14... Bg7 $14) 15. Ne5 $1 $16 {[%emt 0:08:20][%mdl 512]} Nxe5 {[%emt 0:06:25]} (15... Bxe5 16. dxe5) 16. dxe5 {[%emt 0:00:05]} Bxe5 {[%emt 0:00:14]} 17. Nxd5 {[%emt 0:00:22]} (17. Bxd5+ Nxd5 18. Qxd5+ Qxd5 19. Nxd5 c5) 17... Kh8 {[%emt 0:00:13]} 18. Re1 $1 $36 {[%emt 0:13:32][%mdl 2048] White has strong initiative.} Nc6 {[%emt 0:02:52][%cal Of5h3] [#]} 19. Rxe5 $1 {[%emt 0:02:28][%mdl 512]} Nxe5 {[%emt 0:00:11]} 20. Bd2 {[%emt 0:01:37][%cal Bc1d2,Bd2c3,Bc3e5][%mdl 32]} Rae8 {[%emt 0:11:53] [#]} 21. Bc3 $1 {[%emt 0:02:13]} c6 {[%emt 0:02:03] [#]} (21... c5 $142) 22. Ne3 $1 $18 {[%emt 0:03:07]} Qxd1+ {[%emt 0:22:34]} 23. Rxd1 {[%emt 0:49:34] f4 would now be deadly.} Bc8 $2 {[%emt 0:01:55]} (23... a5 {is a better defense.} 24. Rd8 Kg7) 24. f4 {[%emt 0:00:00]} Rxf4 {[%emt 0:08:44] [#]} (24... Kg7 $142 25. Bxe5+ (25. fxe5 b4 $18) 25... Rxe5 26. fxe5 a5) 25. Rd8 $3 {[%emt 0:00:00][%mdl 512]} Rxd8 {[%emt 0:00:06]} (25... Rff8 26. Rxc8) 26. Bxe5+ {[%emt 0:00:00] This pair of bishops is nice.} Rf6 {[%emt 0:00:09]} 27. Bxf6# {[%emt 0:00:00] Weighted Error Value: White=0.03 (flawless) /Black=0.60.  Mistake:       	---       	Black=4      Inaccurate:     	White=2     	Black=5      OK:         	White=5     	Black=4      Best:        	White=2     	Black=1      Strong:       	White=3     	---        Brilliant:      	White=1     	---} 1-0

[Event "21st Open Gran Hotel Bali-A 2024"]
[Site "Benidorm"]
[Date "2024.11.30"]
[Round "2.2"]
[White "Bravo De La Vega, Alvaro"]
[Black "Amar, Elham"]
[Result "0-1"]
[ECO "E01"]
[WhiteElo "2226"]
[BlackElo "2529"]
[Annotator "RC"]
[PlyCount "120"]
[EventDate "2024.11.26"]
[EventType "swiss"]
[EventCountry "ESP"]
[SourceTitle "playchess.com"]
[Source "ChessBase"]
[SourceQuality "1"]
[TimeControl "5400+30"]

1. d4 {[%emt 0:00:04]} Nf6 {[%emt 0:03:07]} 2. c4 {[%emt 0:00:10]} e6 {[%emt 0:00:13]} 3. Nf3 {[%emt 0:00:10]} d5 {[%emt 0:00:22]} 4. g3 {[%emt 0:00:07]} Bb4+ {[%emt 0:00:41]} 5. Bd2 {[%emt 0:00:08]} Bd6 {[%emt 0:00:08]} 6. Bg2 {[%emt 0:00:24]} O-O {[%emt 0:00:17]} 7. O-O {[%emt 0:07:13]} c6 {[%emt 0:00:21]} 8. Qc2 {[%emt 0:04:39]} Nbd7 {[%emt 0:00:27]} 9. Bg5 {[%emt 0:06:30]} h6 {[%emt 1:29:24]} 10. Bxf6 {[%emt 0:00:11]} Nxf6 {[%emt 0:00:00]} 11. Nbd2 {[%emt 0:03:40]} a5 {[%emt 0:00:00]} 12. e4 {[%emt 0:05:07]} Nxe4 {[%emt 0:00:00]} 13. Nxe4 {[%emt 0:00:06]} dxe4 {[%emt 0:00:00]} 14. Qxe4 {[%emt 0:00:06]} c5 {[%emt 0:00:00]} 15. b3 {[%emt 0:14:07]} Qc7 {[%emt 0:00:00]} 16. Rad1 {[%emt 0:07:01]} a4 {[%emt 0:00:00]} 17. dxc5 {[%emt 0:02:05]} Bxc5 {[%emt 0:00:00]} 18. Nd4 {[%emt 0:01:24]} axb3 {[%emt 0:00:00]} 19. axb3 {[%emt 0:00:14]} Qb6 {[%emt 0:00:00]} 20. Nb5 {[%emt 0:01:41]} Ra2 {[%emt 0:00:00]} 21. Qf3 {[%emt 0:02:13]} Rb2 {[%emt 0:00:00]} 22. Rd3 {[%emt 0:06:36]} e5 {[%emt 0:00:00]} 23. Nc3 {[%emt 0:06:01]} Rxb3 {[%emt 0:00:00]} 24. Na4 {[%emt 0:00:22]} Rxd3 {[%emt 0:00:00]} 25. Qxd3 {[%emt 0:00:06]} Qa7 {[%emt 0:00:00]} 26. Nxc5 {[%emt 0:00:21]} Qxc5 {[%emt 0:00:00]} 27. Bd5 {[%emt 0:00:27]} Re8 {[%emt 0:00:00]} 28. Rb1 {[%emt 0:04:43]} Qc7 {[%emt 0:00:00]} 29. Qf3 {[%emt 0:03:16]} Rd8 {[%emt 0:00:00]} 30. Re1 {[%emt 0:07:27]} Re8 {[%emt 0:00:00]} 31. Rb1 {[%emt 0:00:06]} Re7 {[%emt 0:00:00]} 32. h4 {[%emt 0:00:58]} Kh8 {[%emt 0:00:00]} 33. h5 {[%emt 0:04:09]} f5 {[%emt 0:00:00]} 34. Ra1 {[%emt 0:01:47]} e4 {[%emt 0:00:00]} 35. Qe3 {[%emt 0:00:34]} Be6 {[%emt 0:00:00]} 36. Ra8+ {[%emt 0:00:17]} Kh7 {[%emt 0:00:00]} 37. Bxe4 {[%emt 0:04:18]} Bd7 {[%emt 0:00:00]} 38. Qa3 {[%emt 0:00:09]} Rxe4 {[%emt 0:00:00]} 39. Qf8 {[%emt 0:00:05]} Re8 {[%emt 0:00:00]} 40. Rxe8 {[%emt 0:00:04]} Bxe8 {[%emt 0:00:00]} 41. Qxe8 {[%emt 0:00:08]} Qxc4 {[%emt 0:00:00]} 42. Qg6+ {[%emt 0:00:07]} Kh8 {[%emt 0:00:00]} 43. Qxf5 {[%emt 0:02:08]} b5 {[%emt 0:00:00]} 44. Qf8+ {[%emt 0:00:08]} Kh7 {[%emt 0:00:00]} 45. Qe8 {[%emt 0:01:09]} Qd3 {[%emt 0:00:00]} 46. Qe1 {[%emt 0:03:26]} Qf5 {[%emt 0:00:00]} 47. Qd1 {[%emt 0:00:07]} b4 {[%emt 0:00:00]} 48. Qb3 {[%emt 0:00:13]} Qe4 {[%emt 0:00:00]} 49. Kh2 {[%emt 0:01:33]} Qd4 {[%emt 0:00:00]} 50. Kg1 {[%emt 0:02:20]} Qc3 {[%emt 0:00:00]} 51. Qb1+ {[%emt 0:01:52]} Kg8 {[%emt 0:00:00]} 52. Qe4 {[%emt 0:00:33]} Kf7 {[%emt 0:00:00]} 53. Qb7+ {[%emt 0:00:51]} Ke6 {[%emt 0:00:00]} 54. Qb6+ {[%emt 0:00:11]} Kd5 {[%emt 0:00:00]} 55. Qb5+ {[%emt 0:00:12]} Kd4 {[%emt 0:00:00]} 56. Qd7+ {[%emt 0:02:37]} Kc4 {[%emt 0:00:00]} 57. Qe6+ {[%emt 0:00:10]} Kd3 {[%emt 0:00:00]} 58. Qe3+ {[%emt 0:00:19]} Kc2 {[%emt 0:00:00]} 59. Qe2+ {[%emt 0:00:09]} Kc1 {[%emt 0:00:00]} 60. Qf1+ {[%emt 0:00:08]} Kd2 {[%emt 0:00:00]} 0-1

[Event "21st Open Gran Hotel Bali-A 2024"]
[Site "Benidorm"]
[Date "2024.11.30"]
[Round "2.3"]
[White "Solodovnichenko, Yuri"]
[Black "Sgircea, Silvia-Raluca"]
[Result "1-0"]
[ECO "B31"]
[WhiteElo "2503"]
[BlackElo "2221"]
[Annotator "TA"]
[PlyCount "95"]
[EventDate "2024.11.26"]
[EventType "swiss"]
[EventCountry "ESP"]
[SourceTitle "playchess.com"]
[Source "ChessBase"]
[SourceQuality "1"]
[TimeControl "5400+30"]

{[%evp 14,95,23,12,16,-3,28,26,33,38,27,21,35,25,17,20,33,0,0,0,0,0,0,0,10,0,20,0,47,48,83,84,120,127,127,128,142,142,137,135,227,225,278,274,326,285,299,297,307,183,181,189,206,126,172,193,231,131,132,126,355,343,327,288,284,300,257,269,276,304,304,305,297,295,292,291,470,460,697,668,1937,1900,1195,604]} 1. e4 {[%emt 0:00:03]} c5 {[%emt 0:00:04]} 2. Nf3 {[%emt 0:00:04]} Nc6 {[%emt 0:00:07]} 3. Bb5 {[%emt 0:00:12]} g6 {[%emt 0:03:17]} 4. O-O {[%emt 0:00:19]} Bg7 {[%emt 0:00:04]} 5. Re1 {[%emt 0:00:15]} Nf6 {[%emt 0:02:23][%cal Bg8f6,Bf6e8,Be8c7][%mdl 32]} 6. Bxc6 {[%emt 0:00:23]} dxc6 {[%emt 0:02:51]} 7. d3 {[%emt 0:00:10]} O-O {[%emt 0:00:06]} 8. h3 {[%emt 0:00:41]} Ne8 {[%emt 0:03:07]} 9. a4 {[%emt 0:04:10][%cal Ba2a4,Ba4a5][%mdl 32]} b6 {[%emt 0:02:05] [#]} 10. a5 $1 {[%emt 0:01:30]} Ba6 {[%emt 0:03:00] White has an edge.} (10... Nc7 11. Qe2) 11. Nc3 {[%emt 0:09:01]} Nc7 {[%emt 0:04:27]} 12. Be3 {[%emt 0:13:16]} Ne6 {[%emt 0:08:01]} 13. e5 {[%emt 0:02:12]} Qc7 {[%emt 0:09:42]} 14. Qd2 {[%emt 0:03:57]} Rfd8 {[%emt 0:06:49]} 15. Bh6 {[%emt 0:01:01]} Nd4 {[%emt 0:03:51]} 16. Nxd4 {[%emt 0:04:21]} cxd4 {[%emt 0:02:13]} 17. Bxg7 {[%emt 0:01:51]} Kxg7 {[%emt 0:00:07]} 18. Nd1 {[%emt 0:02:16]} Rd5 {[%emt 0:10:17]} 19. Qf4 {[%emt 0:00:25]} bxa5 {[%emt 0:05:31]} 20. f3 {[%emt 0:01:03]} Qc8 {[%emt 0:03:42]} (20... Rb8 $11 {is superior.}) 21. Nf2 $14 {[%emt 0:07:57]} Qf5 {[%emt 0:00:30]} 22. Qd2 {[%emt 0:00:20]} Rad8 {[%emt 0:08:50]} ({Of course not} 22... Rxe5 23. Rxe5 Qxe5 24. Rxa5 $16) 23. Rxa5 {[%emt 0:01:04]} Bc8 {[%emt 0:00:16]} 24. Rxa7 {[%emt 0:00:48][%cal Ba5a7,Ba7e7,Be7e1][%mdl 32]} Rxe5 {[%emt 0:01:48]} 25. Rxe7 {[%emt 0:01:07]} Rxe1+ {[%emt 0:02:24]} 26. Rxe1 {[%emt 0:02:06]} Qb5 {[%emt 0:01:30] [#]} (26... Qf6 $16 27. Ne4 Qe5) 27. Qf4 $1 $18 {[%emt 0:02:24]} Qa5 {[%emt 0:09:37]} 28. Re7 {[%emt 0:01:04]} Be6 {[%emt 0:00:55]} 29. Ng4 {[%emt 0:03:33]} Qf5 {[%emt 0:01:13]} 30. Qh6+ {[%emt 0:00:19]} Kh8 {[%emt 0:01:31]} 31. Qh4 {[%emt 0:04:53]} (31. Rc7 $142) 31... g5 {[%emt 0:00:54] [#]} 32. Qg3 $40 {[%emt 0:01:11][%mdl 128] Black is in trouble.} Ra8 {[%emt 0:01:40]} 33. Ne5 {[%emt 0:10:35]} Bd5 {[%emt 0:01:47]} (33... Rc8 $16 34. b4 Kg7) 34. Rc7 {[%emt 0:02:06]} Qf6 {[%emt 0:01:41]} 35. Kh2 {[%emt 0:00:58]} (35. Ng4 $18 Qe6 36. h4) 35... Re8 $16 {[%emt 0:00:49]} 36. Ng4 {[%emt 0:01:11] White is more active.} Qf5 {[%emt 0:00:11] This move loses the game for Black.} (36... Qd8 $16 {is a better defense.}) 37. Qd6 $18 {[%emt 0:01:49]} Kg7 {[%emt 0:00:58] aiming for ...Re6.} 38. Qh6+ {[%emt 0:00:33]} Kh8 {[%emt 0:00:06]} 39. Qf6+ {[%emt 0:00:27]} Qxf6 {[%emt 0:00:13]} 40. Nxf6 {[%emt 0:00:04]} Rb8 {[%emt 0:00:45]} 41. Nxd5 {[%emt 0:01:17]} cxd5 {[%emt 0:00:02]} 42. Rxf7 {[%emt 0:00:24]} Rxb2 {[%emt 0:00:13][%mdl 4096] Endgame. KR-KR} 43. Rc7 {[%emt 0:00:11]} Rb6 {[%emt 0:01:35]} 44. Kg3 {[%emt 0:00:28]} h5 $2 {[%emt 0:00:17]} (44... Re6 45. Kg4 Kg8) 45. Rc5 {[%emt 0:01:04] White is clearly winning.} Rd6 {[%emt 0:00:16]} (45... Kg7 $142 46. Rxd5 Kf6 47. Rxd4 Rc6) 46. h4 {[%emt 0:00:06][%cal Bh3h4,Bh4g5][%mdl 32]} Kg7 {[%emt 0:01:01]} 47. hxg5 {[%emt 0:00:07]} Kg6 {[%emt 0:00:03]} 48. Kf4 {[%emt 0:00:20] Weighted Error Value: White=0.15 (very precise) /Black=0.28 (precise) .  Loses game:     	---       	Black=1      Mistake:       	White=2     	Black=5      Inaccurate:     	White=2     	Black=4      OK:         	White=20    	Black=11     Best:        	White=3     	Black=4} 1-0

[Event "21st Open Gran Hotel Bali-A 2024"]
[Site "Benidorm"]
[Date "2024.11.30"]
[Round "2.4"]
[White "Gales, Randi-Ioan"]
[Black "Kvaloy, Aksel Bu"]
[Result "0-1"]
[ECO "E52"]
[WhiteElo "2206"]
[BlackElo "2502"]
[Annotator "TA"]
[PlyCount "55"]
[EventDate "2024.11.26"]
[EventType "swiss"]
[EventCountry "ESP"]
[SourceTitle "playchess.com"]
[Source "ChessBase"]
[SourceQuality "1"]
[TimeControl "5400+30"]

{[%evp 17,55,-4,20,26,27,37,42,31,50,29,119,50,71,0,27,-183,-173,-189,-177,-268,-236,-177,-139,-166,-133,-203,-188,-281,-284,-273,-274,-285,-237,-241,-151,-1475,-1414,-1479,-1391,-29999]} 1. d4 {[%emt 0:05:19]} Nf6 {[%emt 0:00:05]} 2. c4 {[%emt 0:01:03]} e6 {[%emt 0:00:05]} 3. Nc3 {[%emt 0:00:06]} Bb4 {[%emt 0:00:11]} 4. e3 {[%emt 0:00:07]} O-O {[%emt 0:00:08]} 5. Bd2 {[%emt 0:00:46]} d5 {[%emt 0:04:46]} 6. Nf3 {[%emt 0:00:08]} b6 {[%emt 0:01:55]} 7. cxd5 {[%emt 0:00:11]} exd5 {[%emt 0:00:15]} 8. Bd3 {[%emt 0:00:13]} Bb7 {[%emt 0:04:25]} 9. O-O {[%emt 0:01:38]} a6 {[%emt 0:00:20]} 10. Ne5 {[%emt 0:00:39]} Bd6 {[%emt 0:00:50]} 11. f4 {[%emt 0:02:12]} c5 {[%emt 0:01:24]} 12. Rf3 {[%emt 0:05:16] White is slightly better.} Ne4 {[%emt 0:21:27]} 13. Rh3 {[%emt 0:08:28]} g6 {[%emt 0:01:16] Against Qh5} (13... Nd7 $11) 14. Be1 {[%emt 0:05:09]} (14. Nxf7 $16 Rxf7 15. Nxe4 dxe4 16. Bc4) 14... Nd7 {[%emt 0:03:53]} 15. Qf3 {[%emt 0:25:41][%cal Oc3d5]} f5 {[%emt 0:15:21]} 16. g4 $2 {[%emt 0:26:59]} (16. Rh6 $11 cxd4 17. exd4) 16... cxd4 $19 {[%emt 0:01:16]} 17. exd4 {[%emt 0:01:16]} Nxe5 {[%emt 0:00:41]} 18. dxe5 {[%emt 0:00:42]} (18. fxe5 {was the only defense.} fxg4 (18... Ng5 19. Qg2 $17) 19. Qxg4) 18... Bc5+ {[%emt 0:00:22]} 19. Kg2 {[%emt 0:03:10]} Qd7 {[%emt 0:04:16]} 20. gxf5 {[%emt 0:02:06]} Qxf5 {[%emt 0:01:11]} 21. Rh4 {[%emt 0:05:01]} (21. Bh4 $17) 21... Rae8 {[%emt 0:04:17][%cal Oe8e5] ...Rxe5! would now be deadly.} 22. Nxe4 {[%emt 0:02:24]} (22. Rd1 {is a better defense.}) 22... dxe4 {[%emt 0:00:43]} 23. Bc4+ {[%emt 0:00:01]} Kg7 {[%emt 0:02:15]} 24. Qh3 {[%emt 0:00:38][%csl Gh3][%cal Rh4h7] [#]} e3+ {[%emt 0:01:06]} 25. Kg3 {[%emt 0:00:42][%csl Gh3][%cal Rh4h7]} g5 {[%emt 0:06:59][%cal Rg5f4]} 26. Rg4 {[%emt 0:01:08]} (26. Qxf5 $17 gxh4+ (26... Rxf5 27. Rg4 $19) 27. Kg4 Rxf5 28. Kxf5 Rf8+ 29. Kg4 h5+ 30. Kxh5 Rxf4 31. Be2) 26... Kh8 {[%emt 0:02:04]} 27. fxg5 {[%emt 0:02:19]} Rxe5 {[%emt 0:01:00] [#] ( -> ...e2)} 28. Bc3 {[%emt 0:00:30] Weighted Error Value: White=0.66/Black=0.19 (very precise) .  Loses game:     	White=2     	---        Mistake:       	White=4     	Black=1      Inaccurate:     	White=1     	Black=1      OK:         	White=4     	Black=8      Best:        	White=3     	---} 0-1

[Event "21st Open Gran Hotel Bali-A 2024"]
[Site "Benidorm"]
[Date "2024.11.30"]
[Round "2.5"]
[White "Castellanos Rodriguez, Renier"]
[Black "Aamodt, Peder Marcus"]
[Result "1/2-1/2"]
[ECO "D32"]
[WhiteElo "2472"]
[BlackElo "2178"]
[Annotator "TA"]
[PlyCount "140"]
[EventDate "2024.11.26"]
[EventType "swiss"]
[EventCountry "ESP"]
[SourceTitle "playchess.com"]
[Source "ChessBase"]
[SourceQuality "1"]
[TimeControl "5400+30"]

{[%evp 31,140,22,70,65,105,108,119,120,121,116,120,126,191,128,136,133,167,73,146,50,122,118,193,195,156,82,167,182,147,132,116,118,112,101,214,203,255,253,208,181,356,210,246,32,32,0,0,0,0,0,0,0,0,0,0,0,0,0,0,0,0,0,0,0,0,0,0,0,0,0,0,0,0,0,0,0,0,0,108,0,0,0,0,0,0,0,0,0,0,0,0,0,0,0,0,0,0,0,7,0,0,0,0,0,0,0,0,0,0,0,0]} 1. c4 {[%emt 0:00:05]} Nf6 {[%emt 0:11:11]} 2. Nc3 {[%emt 0:00:27]} c5 {[%emt 0:00:44]} 3. Nf3 {[%emt 0:01:19]} e6 {[%emt 0:00:49]} 4. e3 {[%emt 0:02:17]} d5 {[%emt 0:02:06]} 5. cxd5 {[%emt 0:01:33]} exd5 {[%emt 0:00:50]} 6. d4 {[%emt 0:00:08]} a6 {[%emt 0:01:25]} 7. Be2 {[%emt 0:03:15]} Nc6 {[%emt 0:01:25]} 8. O-O {[%emt 0:00:25]} c4 {[%emt 0:02:18] D32: Tarrasch Defence: Sidelines and lines without g3.} 9. Ne5 {[%emt 0:02:44]} Be6 $146 {[%emt 0:04:42]} ({Predecessor:} 9... Bb4 10. Nxc6 bxc6 11. Bd2 O-O 12. b3 cxb3 13. Qxb3 Bd6 14. Qc2 Re8 15. Rab1 Ng4 16. h3 {0-1 Niemann,H (2637)-Dubov,D (2711) Chess.com Rapid Wk12 Swiss 2022 (4)}) 10. f4 {[%emt 0:07:27]} Be7 {[%emt 0:07:58]} 11. Bd2 {[%emt 0:07:29]} O-O {[%emt 0:06:18]} 12. Bf3 {[%emt 0:03:49]} Ne8 {[%emt 0:10:25]} 13. b3 {[%emt 0:08:58]} Nxe5 {[%emt 0:04:09]} 14. fxe5 {[%emt 0:01:40]} b5 {[%emt 0:00:46]} 15. bxc4 {[%emt 0:00:39]} bxc4 {[%emt 0:00:13]} 16. Ne2 {[%emt 0:02:15]} a5 {[%emt 0:10:22]} (16... Qd7 $11) 17. Rb1 {[%emt 0:06:20]} Bb4 {[%emt 0:04:35]} 18. Rxb4 {[%emt 0:05:09]} axb4 {[%emt 0:01:32]} 19. Bxb4 {[%emt 0:00:05]} Nc7 {[%emt 0:04:45]} 20. Bxf8 {[%emt 0:00:41]} Qxf8 {[%emt 0:00:10]} 21. Qd2 {[%emt 0:05:31]} Ra3 {[%emt 0:06:03]} (21... Rb8 $16 22. Nc3 f6) 22. Nc3 {[%emt 0:01:47]} (22. Rb1 $18) 22... g6 {[%emt 0:01:36]} 23. Qb2 {[%emt 0:04:31]} Qa8 {[%emt 0:17:38]} 24. Qb4 {[%emt 0:03:07]} (24. h3 $18 {has better winning chances.}) 24... Kg7 {[%emt 0:00:00]} ({Black should play} 24... Qf8 25. Qb2 Kg7) 25. Rf2 {[%emt 0:01:18]} (25. Rc1 $16) 25... h5 {[%emt 0:00:00]} (25... Qf8 $14 26. Qxf8+ Kxf8) 26. h3 {[%emt 0:02:56]} Qa7 {[%emt 0:00:00]} (26... Qf8 $16 {was worth a try.} 27. Qxf8+ Kxf8) 27. Kh2 $18 {[%emt 0:03:06]} Qa8 {[%emt 0:00:00]} 28. e4 {[%emt 0:04:47]} (28. Rc2 $142) 28... Qa5 {[%emt 0:00:00]} (28... Rxc3 $16 29. Qxc3 dxe4) 29. Qxa5 $18 {[%emt 0:00:59]} Rxa5 {[%emt 0:00:00]} 30. Rb2 {[%emt 0:05:02]} dxe4 {[%emt 0:00:00]} 31. Bxe4 {[%emt 0:00:12]} (31. Nxe4 Nb5 32. Ng5 Bf5 $17 (32... Nxd4 33. Nxe6+ fxe6 34. Rb7+ Kh6 35. Rc7 $17)) 31... Ra3 {[%emt 0:00:00]} 32. Rc2 {[%emt 0:06:26]} Ra5 {[%emt 0:04:30]} (32... Na6 $16 {is a better defense.}) 33. a4 $18 {[%emt 0:01:48]} f6 {[%emt 0:00:00]} 34. Rb2 {[%emt 0:00:59]} fxe5 {[%emt 0:00:00]} 35. dxe5 {[%emt 0:03:45]} Nd5 $2 {[%emt 0:00:30]} (35... Rc5 {might work better.} 36. Kg3 (36. Rb7 Bc8 $14) 36... Kf8) 36. Bxd5 $18 {[%emt 0:03:13]} Bxd5 {[%emt 0:00:02]} 37. h4 $2 {[%emt 0:00:15]} ({Only move:} 37. Rb5 $18 Rxb5 38. axb5) 37... Bc6 $14 {[%emt 0:00:57]} 38. Rb6 {[%emt 0:01:42]} Bxa4 {[%emt 0:00:45]} 39. Rb7+ {[%emt 0:00:24]} Kf8 {[%emt 0:00:21]} 40. Kg3 {[%emt 0:01:57]} Bc6 {[%emt 0:00:08]} 41. Rc7 {[%emt 0:00:00]} Ra3 {[%emt 0:00:58]} 42. Rxc6 {[%emt 0:00:00]} Rxc3+ {[%emt 0:00:02]} 43. Kf4 {[%emt 0:00:00]} Kf7 {[%emt 0:00:26]} 44. g3 {[%emt 0:01:16]} Rc1 {[%emt 0:01:07]} 45. Ke3 {[%emt 0:00:26]} Rg1 {[%emt 0:00:39]} 46. Rf6+ {[%emt 0:00:40]} Kg7 {[%emt 0:00:10]} 47. Rf3 {[%emt 0:00:27]} Rd1 {[%emt 0:00:48]} 48. Ke4 {[%emt 0:00:05]} Re1+ {[%emt 0:00:35]} 49. Kd4 {[%emt 0:00:23]} Rc1 {[%emt 0:00:15]} 50. Rc3 {[%emt 0:00:41]} Rd1+ {[%emt 0:00:43]} 51. Kxc4 {[%emt 0:00:38]} Kf7 {[%emt 0:00:17]} 52. Rd3 {[%emt 0:00:26]} Ra1 {[%emt 0:00:28]} 53. Kd5 {[%emt 0:00:35]} Ra5+ {[%emt 0:00:32]} 54. Ke4 {[%emt 0:00:06]} Ra6 {[%emt 0:00:35] [#]} (54... Ra4+ $11 {remains equal.} 55. Rd4 Ra7) 55. Rd4 {[%emt 0:00:47]} (55. Kf4 $1 $16) 55... Ra3 $11 {[%emt 0:00:41]} 56. Kf4 {[%emt 0:00:17]} Ke6 {[%emt 0:00:27]} 57. Rd6+ {[%emt 0:00:23]} Kf7 {[%emt 0:00:01]} 58. Rd7+ {[%emt 0:01:16]} Ke6 {[%emt 0:00:32]} 59. Rd4 {[%emt 0:00:07]} (59. Rg7 $5 Ra4+ $8 60. Kg5 Rg4+ 61. Kh6 Rxg3 62. Rxg6+ Rxg6+ 63. Kxg6 Kxe5 64. Kg5 $11 (64. Kxh5 Kf6 $11)) 59... Rb3 {[%emt 0:00:28]} 60. Rd6+ {[%emt 0:00:29]} Kf7 {[%emt 0:00:03]} 61. Ra6 {[%emt 0:00:52]} Rc3 {[%emt 0:00:51]} 62. Ra7+ {[%emt 0:00:29]} Ke6 {[%emt 0:00:42]} 63. Ra6+ {[%emt 0:00:26]} Kf7 {[%emt 0:00:03]} 64. Ra7+ {[%emt 0:00:35]} Ke6 {[%emt 0:00:01]} 65. Rg7 {[%emt 0:00:26]} Rc4+ {[%emt 0:00:11]} 66. Kg5 {[%emt 0:00:30]} Rg4+ {[%emt 0:00:05]} 67. Kh6 {[%emt 0:00:01]} Rxg3 {[%emt 0:00:19]} 68. Rxg6+ {[%emt 0:00:05]} Rxg6+ {[%emt 0:00:03]} 69. Kxg6 {[%emt 0:00:06]} Kxe5 {[%emt 0:00:03]} 70. Kxh5 {[%emt 0:00:05]} Kf6 {[%emt 0:00:02]} 1/2-1/2